lending/lending_fUSD_20251016
["ID","MTS","AMOUNT","RATE_DAILY","PERIOD"]
[391445534,1760607043487,-721.12765535,0.00016328,2]
[391445536,1760607043497,-250.0,0.00016328,2]
[391445538,1760607043506,-151.0,0.00016328,2]
[391445540,1760607043515,-250.0,0.00016328,2]
[391445542,1760607043524,-151.0,0.00016328,2]
[391445543,1760607043533,-250.0,0.00016328,2]
[391445545,1760607043542,-151.0,0.00016328,2]
[391445547,1760607043551,-250.0,0.00016328,2]
[391445550,1760607043561,-151.0,0.00016328,2]
[391445552,1760607043570,-250.0,0.00016328,2]
[391445553,1760607043580,-151.0,0.00016328,2]
[391445555,1760607043590,-250.0,0.00016328,2]
[391445558,1760607043599,-151.0,0.00016328,2]
[391445560,1760607043609,-250.0,0.00016328,2]
[391445561,1760607043618,-151.0,0.00016328,2]
[391445564,1760607043627,-250.0,0.00016328,2]
[391445566,1760607043637,-151.0,0.00016328,2]
[391445568,1760607043646,-250.0,0.00016328,2]
[391445569,1760607043655,-151.0,0.00016328,2]
[391445571,1760607043664,-250.0,0.00016328,2]
[391445574,1760607043674,-250.0,0.00016328,2]
[391445576,1760607043684,-151.0,0.00016328,2]
[391445577,1760607043694,-151.0,0.00016328,2]
[391445580,1760607043703,-151.0,0.00016328,2]
[391445582,1760607043712,-151.0,0.00016328,2]
[391445584,1760607043722,-200.0,0.00016328,2]
[391445586,1760607043731,-151.0,0.00016328,2]
[391445588,1760607043740,-151.0,0.00016328,2]
[391445589,1760607043749,-151.0,0.00016328,2]
[391445591,1760607043758,-250.0,0.00016328,2]
[391445593,1760607043770,-250.0,0.00016328,2]
[391445595,1760607043782,-199.88565917,0.00016328,2]
[391445597,1760607043791,-4584.05164561,0.00016329,2]
[391445599,1760607043800,-4584.05164561,0.0001633,2]
[391445601,1760607043809,-4584.05164561,0.00016331,2]
[391445604,1760607043821,-4584.05164561,0.00016332,2]
[391445606,1760607043830,-4584.05164561,0.00016334,2]
[391445608,1760607043839,-4584.05164561,0.00016335,2]
[391445610,1760607043852,-4584.05164561,0.00016336,2]
[391445611,1760607043861,-4584.05164561,0.00016337,2]
[391445614,1760607043871,-4584.05164561,0.00016338,2]
[391445616,1760607043880,-1152.77290373,0.00016338,2]
[391445617,1760607043890,-2921.94947922,0.00016338,2]
[391445619,1760607043899,-1000.0,0.00016338,2]
[391445621,1760607043908,-5000.0,0.00016338,2]
[391445623,1760607043917,-1000.0,0.00016338,2]
[391445625,1760607043926,-263775.45466174,0.000164,3]
[391445771,1760607045428,-9657.65747887,0.000164,3]
[391445778,1760607045482,-494.61771879,0.000164,3]
[391445785,1760607045538,-4394.378,0.000164,3]
[391447977,1760607791017,200.0,0.00013,2]
[391447995,1760608105178,200.0,0.00012935,2]
[391448050,1760608232656,-166.66,0.00014731,2]
[391448051,1760608232667,-209.6631161,0.00014835,2]
[391448052,1760608232677,-1000.0,0.000149,2]
[391448053,1760608232686,-150.0,0.00015039,2]
[391448054,1760608232696,-166.66,0.00015041,2]
[391448055,1760608232705,-2203.42749722,0.0001515,2]
[391448056,1760608232800,-408.0,0.0001515,2]
[391448057,1760608233116,-500.8199223,0.0001515,2]
[391448058,1760608233192,-323.1063583,0.0001515,2]
[391448059,1760608233201,-399.15158212,0.0001515,2]
[391448060,1760608233213,-376.45209858,0.00015185,2]
[391448061,1760608233271,-296.16790142,0.00015185,2]
[391448062,1760608233285,-163.53,0.00015237,2]
[391448063,1760608233295,-323.9,0.00015326,2]
[391448064,1760608233304,-166.66,0.00015352,2]
[391448065,1760608233314,-440.9198,0.00015533,2]
[391448066,1760608233324,-236.0,0.00015533,2]
[391448067,1760608233333,-296.32724567,0.00015564,2]
[391448068,1760608233343,-245.0,0.00015613,2]
[391448069,1760608233352,-422.0,0.00015639,2]
[391448070,1760608233361,-369.0,0.00015644,2]
[391448071,1760608233371,-166.66,0.00015662,2]
[391448072,1760608233380,-177.0,0.00015675,2]
[391448073,1760608233393,-231.0,0.00015707,2]
[391448074,1760608233403,-417.0,0.00015744,2]
[391448075,1760608233412,-258.0,0.00015767,2]
[391448076,1760608233421,-395.0,0.00015776,2]
[391448077,1760608233431,-290.0,0.00015807,2]
[391448078,1760608233440,-191.0,0.00015839,2]
[391448079,1760608233449,-1988.7496776,0.00015895,2]
[391448080,1760608233459,-250.0,0.00015895,2]
[391448081,1760608233468,-250.0,0.00015895,2]
[391448082,1760608233478,-250.0,0.00015895,2]
[391448083,1760608233487,-250.0,0.00015895,2]
[391448084,1760608233497,-250.0,0.00015895,2]
[391448085,1760608233507,-250.0,0.00015895,2]
[391448086,1760608233516,-317.24646943,0.00015895,2]
[391448087,1760608233528,-471.613,0.00015905,2]
[391448088,1760608233539,-6436.0,0.00015905,2]
[391448089,1760608233549,-4014.0,0.00015905,2]
[391448090,1760608233559,-166.66,0.00015972,2]
[391448091,1760608233569,-2404.9728228,0.00016,2]
[391448092,1760608233579,-951.04125645,0.000161,2]
[391448093,1760608233589,-710.23956548,0.00016109,2]
[391448094,1760608233598,-773.262,0.00016132,2]
[391448095,1760608233607,-166.66,0.00016282,2]
[391448096,1760608233617,-2945.26869072,0.00016288,2]
[391448097,1760608233626,-2945.26869063,0.00016294,2]
[391448098,1760608233636,-2945.26869063,0.00016299,2]
[391448099,1760608233645,-6782.592,0.000163,2]
[391448100,1760608233655,-2500.0,0.000163,2]
[391448101,1760608233665,-188.27497138,0.000163,2]
[391448102,1760608233674,-2945.26869063,0.00016305,2]
[391448103,1760608233684,-2945.26869063,0.0001631,2]
[391448104,1760608233693,-2945.26869063,0.00016316,2]
[391448105,1760608233703,-2945.26869063,0.00016321,2]
[391448106,1760608233712,-2945.26869063,0.00016327,2]
[391448107,1760608233722,-2945.26869063,0.00016332,2]
[391448108,1760608233732,-5000.0,0.00016337,2]
[391448109,1760608233741,-1000.0,0.00016338,2]
[391448110,1760608233751,-317.66634918,0.00016338,2]
[391448111,1760608233761,-1000.0,0.00016338,2]
[391448112,1760608233774,-1000.0,0.00016338,2]
[391448113,1760608233788,-1000.0,0.00016338,2]
[391448114,1760608233798,-1000.0,0.00016338,2]
[391448115,1760608233808,-882.60879947,0.00016338,2]
[391448116,1760608233817,-2945.26869063,0.00016338,2]
[391448117,1760608233826,-285.07625514,0.00016338,2]
[391448118,1760608233837,-223.52411952,0.00016338,2]
[391448119,1760608233846,-1947.96631948,0.00016338,2]
[391448120,1760608233856,-1997.4320614,0.00016388,2]
[391448121,1760608233865,-85957.68595016,0.00016388,2]
[391448122,1760608233878,-550.55,0.00016388,2]
[391448123,1760608233890,-3285.09234464,0.00016388,2]
[391448428,1760608240772,-448.93019671,0.00015073,2]
[391448429,1760608240783,-1182.0,0.00015905,2]
[391448431,1760608240792,-4136.9802766,0.00016388,2]
[391448434,1760608240802,-13524.4370388,0.00016388,2]
[391448436,1760608240812,-2187.8593102,0.00016388,2]
[391448438,1760608240821,-33613.30690238,0.000164,3]
[391448444,1760608240872,-2627.72847815,0.000164,3]
[391448449,1760608240906,-3287.21471376,0.000164,3]
[391448451,1760608240920,-4306.1476099,0.000164,3]
[391448454,1760608240934,-1219.93349329,0.000164,3]
[391448456,1760608240945,-2235.5,0.000164,3]
[391448458,1760608240958,-5441.54725476,0.000164,3]
[391448460,1760608240969,-5863.4804551,0.000164,3]
[391448463,1760608240981,-11000.0,0.000164,3]
[391448465,1760608240996,-335.24497987,0.000164,3]
[391448569,1760608242076,-3272.96,0.00016359,2]
[391448571,1760608242088,-187668.11563761,0.000164,3]
[391448573,1760608242097,-200.0,0.000164,2]
[391448575,1760608242106,-200.0,0.000164,2]
[391448577,1760608242115,-262.16,0.000164,2]
[391448579,1760608242125,-2000.0,0.000164,2]
[391448581,1760608242134,-200.0,0.000164,2]
[391448583,1760608242143,-150.0,0.0001642,2]
[391448585,1760608242152,-150.0,0.0001642,2]
[391448587,1760608242161,-500.0,0.0001642,2]
[391448589,1760608242171,-500.0,0.0001642,2]
[391448591,1760608242181,-500.0,0.0001642,2]
[391448593,1760608242190,-500.0,0.0001642,2]
[391448594,1760608242199,-244.42365491,0.0001642,2]
[391448597,1760608242209,-500.0,0.0001642,2]
[391448599,1760608242218,-150.60482175,0.0001642,2]
[391448601,1760608242228,-150.0,0.0001642,2]
[391448602,1760608242237,-500.0,0.0001642,2]
[391448605,1760608242248,-500.0,0.0001642,2]
[391448607,1760608242259,-369.4082193,0.00016437,2]
[391448609,1760608242268,-150.0,0.00016437,2]
[391448611,1760608242277,-247.4733579,0.00016437,2]
[391448613,1760608242291,-500.0,0.00016437,2]
[391448615,1760608242300,-500.0,0.00016437,2]
[391448617,1760608242309,-447.56736462,0.00016437,2]
[391448619,1760608242318,-120316.74167002,0.00016437,2]
[391448621,1760608242327,-500.0,0.00016437,2]
[391448623,1760608242337,-184.85,0.00016437,2]
[391448625,1760608242346,-150.0,0.00016437,2]
[391448628,1760608242355,-155.0,0.00016437,2]
[391448735,1760608242788,-1440.0,0.00016438,2]
[391448738,1760608242798,-1023.86,0.00016438,2]
[391448740,1760608242808,-1023.86,0.00016438,2]
[391448743,1760608242818,-1023.86,0.00016438,2]
[391448746,1760608242828,-1023.86,0.00016438,2]
[391448748,1760608242839,-1023.86,0.00016438,2]
[391448751,1760608242848,-1023.86,0.00016438,2]
[391448755,1760608242860,-1023.86,0.00016438,2]
[391448758,1760608242870,-1023.86,0.00016438,2]
[391448761,1760608242880,-1023.86,0.00016438,2]
[391448764,1760608242889,-1023.86,0.00016438,2]
[391448766,1760608242899,-1023.86,0.00016438,2]
[391448769,1760608242909,-1023.86,0.00016438,2]
[391448772,1760608242919,-1023.86,0.00016438,2]
[391448775,1760608242931,-1023.86,0.00016438,2]
[391448777,1760608242941,-1023.86,0.00016438,2]
[391448779,1760608242951,-1023.86,0.00016438,2]
[391448781,1760608242961,-1023.86,0.00016438,2]
[391448783,1760608242971,-1023.86,0.00016438,2]
[391448786,1760608242982,-1023.86,0.00016438,2]
[391448789,1760608242991,-1023.86,0.00016438,2]
[391448792,1760608243001,-1023.86,0.00016438,2]
[391448795,1760608243010,-1023.86,0.00016438,2]
[391448798,1760608243019,-1023.86,0.00016438,2]
[391448801,1760608243029,-1023.88905271,0.00016438,2]
[391448805,1760608243043,-500.0,0.00016438,2]
[391448808,1760608243053,-699.95,0.00016438,2]
[391448811,1760608243063,-500.0,0.00016438,2]
[391448814,1760608243075,-699.95,0.00016438,2]
[391448817,1760608243086,-500.0,0.00016438,2]
[391448820,1760608243096,-699.95,0.00016438,2]
[391448823,1760608243107,-500.0,0.00016438,2]
[391448826,1760608243117,-699.95,0.00016438,2]
[391448830,1760608243127,-500.0,0.00016438,2]
[391448834,1760608243138,-500.0,0.00016438,2]
[391448837,1760608243155,-699.95,0.00016438,2]
[391448840,1760608243169,-699.95,0.00016438,2]
[391448843,1760608243179,-500.0,0.00016438,2]
[391448846,1760608243189,-699.95,0.00016438,2]
[391448849,1760608243199,-500.0,0.00016438,2]
[391448853,1760608243209,-500.0,0.00016438,2]
[391448856,1760608243219,-699.95,0.00016438,2]
[391448859,1760608243229,-699.95,0.00016438,2]
[391448862,1760608243238,-500.0,0.00016438,2]
[391448865,1760608243248,-699.95,0.00016438,2]
[391448868,1760608243257,-500.0,0.00016438,2]
[391448871,1760608243267,-699.95,0.00016438,2]
[391448874,1760608243276,-500.0,0.00016438,2]
[391448877,1760608243289,-699.95,0.00016438,2]
[391448879,1760608243299,-500.0,0.00016438,2]
[391448881,1760608243309,-699.95,0.00016438,2]
[391448883,1760608243319,-500.0,0.00016438,2]
[391448885,1760608243329,-699.95,0.00016438,2]
[391448887,1760608243339,-500.0,0.00016438,2]
[391448890,1760608243349,-699.95,0.00016438,2]
[391448891,1760608243359,-500.0,0.00016438,2]
[391448893,1760608243368,-699.95,0.00016438,2]
[391448896,1760608243378,-500.0,0.00016438,2]
[391448897,1760608243387,-699.95,0.00016438,2]
[391448899,1760608243397,-500.0,0.00016438,2]
[391448901,1760608243407,-699.95,0.00016438,2]
[391448904,1760608243423,-500.0,0.00016438,2]
[391448905,1760608243435,-699.95,0.00016438,2]
[391448907,1760608243445,-699.95,0.00016438,2]
[391448910,1760608243454,-288.37912161,0.00016438,2]
[391448912,1760608243470,-699.95,0.00016438,2]
[391448914,1760608243488,-699.95,0.00016438,2]
[391448916,1760608243498,-699.95,0.00016438,2]
[391448918,1760608243507,-699.98986813,0.00016438,2]
[391448920,1760608243525,-500.0,0.00016438,2]
[391448923,1760608243539,-500.0,0.00016438,2]
[391448925,1760608243549,-500.0,0.00016438,2]
[391448927,1760608243558,-501.64765922,0.00016438,2]
[391448929,1760608243568,-500.0,0.00016438,2]
[391448931,1760608243578,-500.0,0.00016438,2]
[391448933,1760608243588,-500.0,0.00016438,2]
[391448935,1760608243598,-500.0,0.00016438,2]
[391448937,1760608243607,-500.0,0.00016438,2]
[391448939,1760608243618,-500.0,0.00016438,2]
[391448941,1760608243628,-500.0,0.00016438,2]
[391448943,1760608243638,-500.0,0.00016438,2]
[391448945,1760608243649,-500.0,0.00016438,2]
[391448947,1760608243658,-500.0,0.00016438,2]
[391448949,1760608243668,-500.0,0.00016438,2]
[391448951,1760608243678,-500.0,0.00016438,2]
[391448953,1760608243688,-500.0,0.00016438,2]
[391448956,1760608243698,-500.0,0.00016438,2]
[391448958,1760608243708,-500.0,0.00016438,2]
[391448960,1760608243718,-500.0,0.00016438,2]
[391448962,1760608243727,-196.72789938,0.00016438,2]
[391448964,1760608243739,-500.0,0.00016438,2]
[391448966,1760608243748,-500.0,0.00016438,2]
[391448968,1760608243759,-154.97064663,0.00016438,2]
[391448969,1760608243794,-266.83101151,0.00016438,2]
[391448970,1760608243805,-19.72698849,0.00016438,2]
[391448971,1760608243845,-577.13301151,0.00016438,2]
[391448973,1760608243855,-543.78678849,0.00016438,2]
[391448975,1760608243867,-53.07321151,0.00016438,2]
[391448977,1760608243876,-596.86,0.00016438,2]
[391448979,1760608243886,-596.86,0.00016438,2]
[391448981,1760608243895,-596.86,0.00016438,2]
[391448983,1760608243905,-596.86,0.00016438,2]
[391448985,1760608243915,-596.86,0.00016438,2]
[391448987,1760608243924,-596.86,0.00016438,2]
[391448989,1760608243934,-596.86,0.00016438,2]
[391448991,1760608243943,-179.90678849,0.00016438,2]
[391448993,1760608243958,-416.95321151,0.00016438,2]
[391448995,1760608243968,-596.86,0.00016438,2]
[391448997,1760608243978,-596.86,0.00016438,2]
[391448999,1760608243987,-224.78328839,0.00016438,2]
[391449069,1760608244651,-372.07671161,0.00016438,2]
[391449071,1760608244661,-596.86,0.00016438,2]
[391449073,1760608244671,-596.86,0.00016438,2]
[391449075,1760608244681,-555.55328839,0.00016438,2]
[391449084,1760608244755,-41.30671161,0.00016438,2]
[391449086,1760608244766,-596.86,0.00016438,2]
[391449088,1760608244784,-596.86,0.00016438,2]
[391449090,1760608244794,-596.86,0.00016438,2]
[391449092,1760608244803,-596.86,0.00016438,2]
[391449094,1760608244814,-596.86,0.00016438,2]
[391449096,1760608244823,-596.86,0.00016438,2]
[391449098,1760608244833,-596.86,0.00016438,2]
[391449100,1760608244842,-596.8783717,0.00016438,2]
[391449102,1760608244852,-500.0,0.00016438,2]
[391449105,1760608244862,-546.14794963,0.00016438,2]
[391449107,1760608244872,-152.75997465,0.00016438,2]
[391449109,1760608244891,-500.0,0.00016438,2]
[391449111,1760608244902,-500.0,0.00016438,2]
[391449113,1760608244912,-500.0,0.00016438,2]
[391449115,1760608244922,-500.0,0.00016438,2]
[391449117,1760608244931,-500.0,0.00016438,2]
[391449119,1760608244941,-500.0,0.00016438,2]
[391449121,1760608244951,-500.0,0.00016438,2]
[391449123,1760608244960,-500.0,0.00016438,2]
[391449125,1760608244969,-500.0,0.00016438,2]
[391449127,1760608244980,-500.0,0.00016438,2]
[391449129,1760608244989,-500.0,0.00016438,2]
[391449131,1760608245000,-500.0,0.00016438,2]
[391449133,1760608245011,-500.0,0.00016438,2]
[391449135,1760608245021,-494.97445077,0.00016438,2]
[391449137,1760608245031,-984.91,0.00016438,2]
[391449139,1760608245042,-984.91,0.00016438,2]
[391449141,1760608245051,-984.91,0.00016438,2]
[391449143,1760608245062,-984.91,0.00016438,2]
[391449145,1760608245072,-984.91,0.00016438,2]
[391449147,1760608245082,-984.91,0.00016438,2]
[391449150,1760608245092,-984.91,0.00016438,2]
[391449152,1760608245101,-984.91,0.00016438,2]
[391449154,1760608245110,-984.91,0.00016438,2]
[391449156,1760608245120,-281.32254164,0.00016438,2]
[391449159,1760608245140,-703.58745836,0.00016438,2]
[391449161,1760608245149,-53.23596884,0.00016438,2]
[391449396,1760608247468,-931.67403116,0.00016438,2]
[391449397,1760608247478,-984.91,0.00016438,2]
[391449399,1760608247487,-984.91,0.00016438,2]
[391449401,1760608247498,-984.91,0.00016438,2]
[391449403,1760608247506,-985.11827358,0.00016438,2]
[391449405,1760608247515,-2438.1,0.00016438,2]
[391449406,1760608247524,-2438.1,0.00016438,2]
[391449408,1760608247534,-2336.51,0.00016438,2]
[391449410,1760608247548,-2438.1,0.00016438,2]
[391449412,1760608247557,-2336.51,0.00016438,2]
[391449414,1760608247566,-2438.1,0.00016438,2]
[391449416,1760608247576,-2336.51,0.00016438,2]
[391449417,1760608247587,-2163.70811707,0.00016438,2]
[391449420,1760608247601,-274.39188293,0.00016438,2]
[391449421,1760608247610,-2336.51,0.00016438,2]
[391449423,1760608247619,-2438.1,0.00016438,2]
[391449425,1760608247628,-2336.51,0.00016438,2]
[391449427,1760608247637,-2438.25958961,0.00016438,2]
[391449429,1760608247647,-2336.51,0.00016438,2]
[391449430,1760608247657,-2336.51,0.00016438,2]
[391449432,1760608247666,-2336.51,0.00016438,2]
[391449434,1760608247676,-2336.51,0.00016438,2]
[391449436,1760608247686,-2336.51,0.00016438,2]
[391449438,1760608247695,-2336.51,0.00016438,2]
[391449440,1760608247704,-2336.51,0.00016438,2]
[391449441,1760608247714,-2336.51,0.00016438,2]
[391449443,1760608247724,-2336.51,0.00016438,2]
[391449445,1760608247733,-2336.51,0.00016438,2]
[391449447,1760608247743,-2336.51,0.00016438,2]
[391449449,1760608247753,-2336.51,0.00016438,2]
[391449450,1760608247762,-500.0,0.00016438,2]
[391449451,1760608247771,-500.0,0.00016438,2]
[391449452,1760608247780,-500.0,0.00016438,2]
[391449453,1760608247791,-500.0,0.00016438,2]
[391449454,1760608247805,-500.0,0.00016438,2]
[391449455,1760608247814,-282.80117501,0.00016438,2]
[391449456,1760608247823,-500.0,0.00016438,2]
[391449457,1760608247832,-500.0,0.00016438,2]
[391449458,1760608247841,-215.76957689,0.00016438,2]
[391449459,1760608247849,-528.46,0.00016438,2]
[391449460,1760608247858,-500.0,0.00016438,2]
[391449461,1760608247867,-500.0,0.00016438,2]
[391449462,1760608247876,-528.46,0.00016438,2]
[391449463,1760608247885,-500.0,0.00016438,2]
[391449465,1760608247894,-500.0,0.00016438,2]
[391449467,1760608247903,-528.46,0.00016438,2]
[391449469,1760608247912,-500.0,0.00016438,2]
[391449471,1760608247921,-500.0,0.00016438,2]
[391449473,1760608247931,-528.46,0.00016438,2]
[391449475,1760608247940,-500.0,0.00016438,2]
[391449477,1760608247949,-500.0,0.00016438,2]
[391449479,1760608247958,-528.46,0.00016438,2]
[391449481,1760608247967,-500.0,0.00016438,2]
[391449483,1760608247976,-528.46,0.00016438,2]
[391449485,1760608247985,-500.0,0.00016438,2]
[391449487,1760608247994,-528.46,0.00016438,2]
[391449489,1760608248003,-500.0,0.00016438,2]
[391449491,1760608248013,-528.46,0.00016438,2]
[391449493,1760608248022,-500.0,0.00016438,2]
[391449495,1760608248031,-528.46,0.00016438,2]
[391449497,1760608248043,-500.0,0.00016438,2]
[391449499,1760608248052,-500.0,0.00016438,2]
[391449501,1760608248061,-528.46,0.00016438,2]
[391449503,1760608248071,-500.0,0.00016438,2]
[391449505,1760608248080,-528.46,0.00016438,2]
[391449507,1760608248090,-500.0,0.00016438,2]
[391449509,1760608248099,-528.46,0.00016438,2]
[391449511,1760608248108,-500.0,0.00016438,2]
[391449514,1760608248120,-528.46,0.00016438,2]
[391449516,1760608248130,-500.0,0.00016438,2]
[391449518,1760608248139,-528.46,0.00016438,2]
[391449520,1760608248149,-500.0,0.00016438,2]
[391449522,1760608248158,-528.46,0.00016438,2]
[391449524,1760608248168,-500.0,0.00016438,2]
[391449526,1760608248177,-528.46,0.00016438,2]
[391449528,1760608248186,-528.46,0.00016438,2]
[391449530,1760608248195,-528.46,0.00016438,2]
[391449532,1760608248205,-528.46,0.00016438,2]
[391449534,1760608248214,-528.46,0.00016438,2]
[391449536,1760608248223,-528.46,0.00016438,2]
[391449538,1760608248232,-528.46,0.00016438,2]
[391449539,1760608248241,-528.46,0.00016438,2]
[391449541,1760608248250,-528.52168751,0.00016438,2]
[391449544,1760608248260,-312.57711192,0.00016438,2]
[391449546,1760608248269,-500.0,0.00016438,2]
[391449547,1760608248278,-500.0,0.00016438,2]
[391449549,1760608248289,-500.0,0.00016438,2]
[391449552,1760608248299,-500.0,0.00016438,2]
[391449554,1760608248309,-500.0,0.00016438,2]
[391449556,1760608248318,-500.0,0.00016438,2]
[391449558,1760608248327,-500.0,0.00016438,2]
[391449560,1760608248337,-500.0,0.00016438,2]
[391449562,1760608248349,-500.0,0.00016438,2]
[391449564,1760608248358,-500.0,0.00016438,2]
[391449566,1760608248367,-500.0,0.00016438,2]
[391449568,1760608248376,-500.0,0.00016438,2]
[391449570,1760608248385,-536.4577906,0.00016438,2]
[391449572,1760608248394,-500.0,0.00016438,2]
[391449574,1760608248404,-500.0,0.00016438,2]
[391449576,1760608248414,-500.0,0.00016438,2]
[391449578,1760608248425,-500.0,0.00016438,2]
[391449580,1760608248434,-500.0,0.00016438,2]
[391449582,1760608248443,-500.0,0.00016438,2]
[391449584,1760608248451,-500.0,0.00016438,2]
[391449586,1760608248461,-197.67367386,0.00016438,2]
[391449588,1760608248470,-500.0,0.00016438,2]
[391449590,1760608248479,-500.0,0.00016438,2]
[391449592,1760608248488,-500.0,0.00016438,2]
[391449594,1760608248497,-500.0,0.00016438,2]
[391449596,1760608248506,-500.0,0.00016438,2]
[391449598,1760608248515,-500.0,0.00016438,2]
[391449600,1760608248524,-500.0,0.00016438,2]
[391449602,1760608248534,-500.0,0.00016438,2]
[391449604,1760608248546,-500.0,0.00016438,2]
[391449606,1760608248555,-500.0,0.00016438,2]
[391449608,1760608248564,-500.0,0.00016438,2]
[391449610,1760608248573,-324.97612644,0.00016438,2]
[391449612,1760608248582,-500.0,0.00016438,2]
[391449614,1760608248591,-500.0,0.00016438,2]
[391449616,1760608248600,-500.0,0.00016438,2]
[391449618,1760608248610,-500.0,0.00016438,2]
[391449620,1760608248619,-500.0,0.00016438,2]
[391449622,1760608248629,-500.0,0.00016438,2]
[391449624,1760608248638,-500.0,0.00016438,2]
[391449626,1760608248647,-500.0,0.00016438,2]
[391449628,1760608248655,-500.0,0.00016438,2]
[391449630,1760608248665,-500.0,0.00016438,2]
[391449632,1760608248674,-500.0,0.00016438,2]
[391449634,1760608248683,-500.0,0.00016438,2]
[391449636,1760608248692,-184.20939111,0.00016438,2]
[391449638,1760608248701,-500.0,0.00016438,2]
[391449640,1760608248710,-500.0,0.00016438,2]
[391449642,1760608248719,-369.14060759,0.00016438,2]
[391449644,1760608248730,-500.0,0.00016438,2]
[391449646,1760608248739,-500.0,0.00016438,2]
[391449648,1760608248748,-500.0,0.00016438,2]
[391449650,1760608248757,-500.0,0.00016438,2]
[391449652,1760608248766,-500.0,0.00016438,2]
[391449654,1760608248775,-500.0,0.00016438,2]
[391449656,1760608248784,-323.87239142,0.00016438,2]
[391449658,1760608248795,-500.0,0.00016438,2]
[391449660,1760608248804,-500.0,0.00016438,2]
[391449662,1760608248813,-500.0,0.00016438,2]
[391449664,1760608248822,-500.0,0.00016438,2]
[391449666,1760608248832,-500.0,0.00016438,2]
[391449668,1760608248841,-500.0,0.00016438,2]
[391449670,1760608248851,-638.74073492,0.00016438,2]
[391449672,1760608248861,-500.0,0.00016438,2]
[391449674,1760608248871,-500.0,0.00016438,2]
[391449676,1760608248880,-500.0,0.00016438,2]
[391449678,1760608248890,-500.0,0.00016438,2]
[391449680,1760608248899,-585.19615559,0.00016438,2]
[391449682,1760608248908,-500.0,0.00016438,2]
[391449684,1760608248918,-500.0,0.00016438,2]
[391449686,1760608248928,-500.0,0.00016438,2]
[391449688,1760608248937,-151.0,0.00016438,2]
[391449690,1760608248946,-472.57669006,0.00016438,2]
[391449692,1760608248956,-500.0,0.00016438,2]
[391449694,1760608248966,-500.0,0.00016438,2]
[391449696,1760608248975,-500.0,0.00016438,2]
[391449698,1760608248984,-1260.1,0.00016438,2]
[391449700,1760608248995,-1260.1,0.00016438,2]
[391449703,1760608249012,-1726.47,0.00016438,2]
[391449704,1760608249021,-1260.1,0.00016438,2]
[391449707,1760608249031,-1726.47,0.00016438,2]
[391449709,1760608249044,-1260.1,0.00016438,2]
[391449711,1760608249053,-1726.47,0.00016438,2]
[391449713,1760608249062,-1260.1,0.00016438,2]
[391449715,1760608249071,-1726.47,0.00016438,2]
[391449717,1760608249080,-1260.1,0.00016438,2]
[391449719,1760608249088,-1726.47,0.00016438,2]
[391449721,1760608249097,-1260.1,0.00016438,2]
[391449723,1760608249107,-1726.47,0.00016438,2]
[391449725,1760608249116,-1260.1,0.00016438,2]
[391449727,1760608249126,-1726.47,0.00016438,2]
[391449762,1760608249449,-1260.1,0.00016438,2]
[391449764,1760608249458,-1726.47,0.00016438,2]